bitfinex-derivatives/quotes_SOLF0:USTF0_20260204
["timestamp","ask_amount","ask_price","bid_price","bid_amount"]
[1770164539291,0.06772077,97.86,97.817,20.59323495]
[1770164539792,9.2103,97.859,97.817,20.59323495]
[1770164539987,9.2103,97.859,97.795,20.59411135]
[1770164540194,0.79430875,97.859,97.795,20.59411135]
[1770164540494,0.06860399,97.85,97.795,20.59411135]
[1770164541299,9.2113,97.848,97.797,20.69578418]
[1770164541499,0.06860399,97.85,97.797,20.69578418]
[1770164541892,0.79430875,97.859,97.802,20.69670356]
[1770164542298,0.06570437,97.83,97.802,20.69670356]
[1770164542498,0.79430875,97.859,97.802,20.69670356]
[1770164542797,0.79430875,97.859,97.82,0.06622617]
[1770164543098,0.39786374,97.874,97.82,0.06622617]
[1770164543397,266.02594995,97.89,97.821,20.82555833]
[1770164543398,9.2093,97.869,97.821,20.82555833]
[1770164543596,9.39013805,97.883,97.821,20.82555833]
[1770164543794,9.61718843,97.887,97.824,20.82645568]
[1770164543999,9.61718843,97.887,97.83,0.06711923]
[1770164544299,9.61718843,97.887,97.831,20.82645568]
[1770164546792,9.63964465,97.878,97.831,20.82645568]
[1770164546995,0.43124465,97.872,97.83,0.06711923]
[1770164547194,0.43124465,97.872,97.815,20.83556826]
[1770164547396,0.06495244,97.86,97.815,20.83556826]
[1770164547792,9.2108,97.853,97.792,20.83643632]
[1770164547999,9.65335634,97.853,97.792,20.83643632]
[1770164548792,9.2116,97.845,97.792,20.83643632]
[1770164550406,9.2124,97.836,97.792,20.83643632]
[1770164550801,0.51768638,97.835,97.77,20.81805892]
[1770164551498,0.5291091,97.826,97.77,20.81805892]
[1770164551796,0.5291091,97.826,97.734,143.4525]
[1770164552001,0.5291091,97.826,97.735,20.8189399]
[1770164552599,0.56244734,97.809,97.746,20.80860003]
[1770164553098,0.06484453,97.79,97.746,20.80860003]
[1770164553402,8.99324182,97.79,97.728,20.80860003]
[1770164554106,8.92839729,97.79,97.728,20.80860003]
[1770164554401,0.06655974,97.77,97.728,20.80860003]
[1770164555601,8.36594995,97.81,97.74,0.06727961]
[1770164555808,0.92312504,97.822,97.741,20.64700115]
[1770164556305,0.92312504,97.81,97.745,20.64700115]
[1770164556495,9.28907499,97.81,97.745,20.64700115]
[1770164557204,0.44823295,97.803,97.745,20.64700115]
[1770164557404,0.44823295,97.803,97.77,0.0668497]
[1770164557705,8.36594995,97.79,97.745,20.64700115]
[1770164557901,0.3918749,97.785,97.708,20.92483671]
[1770164559000,0.3918749,97.785,97.719,21.1332816]
[1770164559507,257.64,97.806,97.719,21.1332816]
[1770164560109,9.217,97.787,97.725,21.13417589]
[1770164561108,0.06992233,97.77,97.725,21.13417589]
[1770164561510,0.06992233,97.77,97.727,9.2226]
[1770164561712,0.06992233,97.77,97.728,21.16217487]
[1770164562210,9.217,97.787,97.728,21.16217487]
[1770164562408,143.3908,97.777,97.728,21.16217487]
[1770164562706,8.36594995,97.79,97.694,143.5114]
[1770164562707,15.95589291,97.776,97.694,143.5114]
[1770164563104,9.2174,97.783,97.708,143.4917]
[1770164563306,15.95589291,97.796,97.708,143.4917]
[1770164563509,15.95589291,97.796,97.71,143.4883]
[1770164563812,9.2165,97.793,97.717,143.4777]
[1770164564202,15.95589291,97.796,97.723,143.4684]
[1770164564413,15.95589291,97.796,97.724,408.16]
[1770164564604,15.95589291,97.796,97.725,20.34337167]
[1770164564809,0.0665925,97.78,97.725,20.34337167]
[1770164565112,0.0665925,97.78,97.724,408.16]
[1770164565113,0.0665925,97.78,97.73,20.34337167]
[1770164565712,15.95589291,97.796,97.73,20.34337167]
[1770164566815,9.2173,97.785,97.73,20.34337167]
[1770164567515,9.2162,97.795,97.733,20.34337167]
[1770164567716,25.35749561,97.795,97.733,20.34337167]
[1770164567917,16.14129561,97.795,97.733,20.34337167]
[1770164568811,16.14129561,97.795,97.738,20.34337167]
[1770164570506,3.35147178,97.79,97.738,20.34337167]
[1770164570704,3.35147178,97.79,97.741,20.92006898]
[1770164572315,16.14129561,97.795,97.747,30.14076898]
[1770164572615,16.14129561,97.795,97.719,408.2]
[1770164572616,17.08398491,97.818,97.748,20.92006898]
[1770164573208,9.2167,97.791,97.748,20.92006898]
[1770164574114,9.2155,97.803,97.748,20.92006898]
[1770164574415,26.33654134,97.803,97.748,20.92006898]
[1770164575015,26.33654134,97.803,97.76,0.06491334]
[1770164576119,26.3324814,97.793,97.76,0.06491334]
[1770164576719,26.3324814,97.793,97.748,20.92006898]
[1770164577024,26.3324814,97.793,97.76,0.0651118]
[1770164577512,9.2172,97.785,97.76,0.0651118]
[1770164578121,9.2172,97.785,97.748,20.92006898]
[1770164578622,17.1159814,97.793,97.748,20.92006898]
[1770164579024,17.55492516,97.819,97.748,20.92006898]
[1770164579226,17.55492516,97.819,97.724,143.4675]
[1770164579227,9.2155,97.803,97.751,21.47011545]
[1770164579426,143.3214,97.825,97.751,21.47011545]
[1770164579427,0.0706633,97.78,97.751,21.47011545]
[1770164580018,17.55492516,97.802,97.751,21.47011545]
[1770164580826,9.2172,97.785,97.751,21.47011545]
[1770164583027,9.2163,97.794,97.751,21.47011545]
[1770164583226,9.39013805,97.826,97.755,21.47011545]
[1770164583527,9.213,97.83,97.761,21.47011545]
[1770164583825,17.85353376,97.837,97.775,21.47011545]
[1770164584527,9.2126,97.834,97.775,21.47011545]
[1770164585028,17.85353376,97.837,97.775,21.47011545]
[1770164585418,27.06583376,97.837,97.78,21.47011545]
[1770164586227,17.85353376,97.837,97.783,21.47011545]
[1770164586428,9.2113,97.848,97.783,21.47011545]
[1770164586828,9.2113,97.848,97.8,0.06447642]
[1770164587034,9.2113,97.848,97.8,21.53459187]
[1770164590437,9.2121,97.839,97.8,21.53459187]
[1770164590834,9.39013805,97.867,97.8,21.53459187]
[1770164590835,9.2092,97.87,97.8,21.53459187]
[1770164591032,17.45913648,97.872,97.8,21.47011545]
[1770164591230,399.5034,97.919,97.787,143.3756]
[1770164591231,17.45913648,97.891,97.802,21.47011545]
[1770164591436,17.45913648,97.891,97.803,21.47011545]
[1770164591638,9.2082,97.881,97.815,9.2143]
[1770164591835,17.48822311,97.886,97.816,21.47011545]
[1770164592032,17.48822311,97.884,97.816,21.47011545]
[1770164593044,17.43244734,97.899,97.821,21.47011545]
[1770164593244,17.43244734,97.899,97.841,21.47011545]
[1770164594944,17.3660853,97.915,97.841,21.47011545]
[1770164595746,9.2055,97.909,97.843,21.47011545]
[1770164596144,17.3660853,97.915,97.843,21.47011545]
[1770164596842,8.37812247,97.93,97.864,21.47011545]
[1770164597046,16.79979817,97.946,97.864,21.47011545]
[1770164597245,16.79979817,97.946,97.872,21.47011545]
[1770164597441,16.79979817,97.946,97.889,21.47011545]
[1770164597642,16.81852474,97.964,97.889,21.47011545]
[1770164597941,9.2013,97.954,97.891,21.47011545]
[1770164598143,16.81852474,97.946,97.871,21.47011545]
[1770164598346,16.81852474,97.938,97.871,21.47011545]
[1770164598740,16.7871011,97.955,97.877,143.2428]
[1770164598939,16.7871011,97.955,97.878,21.47011545]
[1770164599140,16.7871011,97.955,97.895,21.47011545]
[1770164599541,16.805591,97.949,97.895,21.47011545]
[1770164599741,9.2023,97.944,97.895,21.47011545]
[1770164600641,25.98189683,97.944,97.895,21.47011545]
[1770164600847,9.2025,97.942,97.895,21.47011545]
[1770164601152,16.77959683,97.943,97.91,0.06439387]
[1770164601343,16.77959683,97.959,97.91,0.06439387]
[1770164601548,8.35398948,97.97,97.911,20.81541343]
[1770164602153,9.2014,97.953,97.894,20.81541343]
[1770164602449,16.79758169,97.969,97.894,20.81541343]
[1770164602854,16.56010222,97.963,97.896,20.81541343]
[1770164603354,9.2012,97.955,97.896,20.81541343]
[1770164604854,26.04384406,97.945,97.896,20.81541343]
[1770164605049,16.84174406,97.944,97.879,20.81541343]
[1770164605251,16.84174406,97.962,97.882,20.81541343]
[1770164605860,9.2008,97.959,97.901,20.81541343]
[1770164606057,16.84174406,97.962,97.901,20.81541343]
[1770164606359,16.85937428,97.96,97.901,20.81541343]
[1770164606859,9.2013,97.954,97.901,20.81541343]
[1770164607049,16.58692869,97.954,97.901,20.81541343]
[1770164607856,25.80479196,97.953,97.901,20.81541343]
[1770164608058,16.60339196,97.953,97.901,20.81541343]
[1770164609153,16.79170799,97.973,97.901,20.81541343]
[1770164609360,16.79170799,97.969,97.901,20.81541343]
[1770164609658,9.2014,97.953,97.901,20.81541343]
[1770164609860,16.80809046,97.949,97.884,20.81541343]
[1770164610055,9.2033,97.933,97.884,20.81541343]
[1770164612155,9.2024,97.943,97.884,20.81541343]
[1770164612362,16.62666937,97.942,97.884,20.81541343]
[1770164613060,16.78708169,97.936,97.884,20.81541343]
[1770164613450,16.80276524,97.917,97.869,20.81541343]
[1770164614762,9.2052,97.913,97.869,20.81541343]
[1770164615363,16.80276524,97.917,97.854,20.81541343]
[1770164615364,16.535164,97.904,97.854,20.81541343]
[1770164616461,17.08773679,97.892,97.829,20.81541343]
[1770164616667,143.2007,97.907,97.829,20.81541343]
[1770164616668,17.08773679,97.889,97.829,20.81541343]
[1770164617166,9.2076,97.887,97.831,20.81541343]
[1770164617563,17.10286109,97.909,97.831,20.81541343]
[1770164617766,17.10286109,97.927,97.859,20.81541343]
[1770164618158,9.204,97.926,97.859,20.81541343]
[1770164618364,17.10286109,97.925,97.859,20.81541343]
[1770164619864,17.45418846,97.92,97.86,20.81541343]
[1770164620971,9.205,97.915,97.861,20.81541343]
[1770164621462,17.45418846,97.92,97.861,20.81541343]
[1770164622471,3.34313306,97.91,97.861,20.81541343]
[1770164622668,3.34313306,97.91,97.863,20.81541343]
[1770164623066,3.34313306,97.91,97.87,20.87984562]
[1770164623462,9.2046,97.919,97.87,20.87984562]
[1770164625363,3.34313306,97.92,97.873,20.81541343]
[1770164625563,16.72342818,97.95,97.873,20.81541343]
[1770164625763,3.34313306,97.95,97.882,20.81541343]
[1770164626162,3.34313306,97.94,97.891,20.81541343]
[1770164626368,3.34313306,97.96,97.901,20.81541343]
[1770164626772,9.2011,97.956,97.901,20.81541343]
[1770164626973,3.34313306,97.95,97.901,20.81541343]
[1770164627775,3.34313306,97.95,97.903,20.81541343]
[1770164629376,3.34313306,97.95,97.904,20.81541343]
[1770164632175,3.34313306,97.96,97.904,20.81541343]
[1770164632377,3.34313306,97.96,97.906,21.3031881]
[1770164632577,9.2003,97.964,97.906,21.3031881]
[1770164632879,16.72342818,97.965,97.906,21.3031881]
[1770164633078,3.34313306,97.96,97.908,30.5086881]
[1770164633380,3.34313306,97.95,97.909,21.3031881]
[1770164633577,3.34313306,97.93,97.897,407.66]
[1770164633780,3.34313306,97.93,97.891,21.3031881]
[1770164634274,9.2019,97.948,97.891,21.3031881]
[1770164634479,3.34313306,97.94,97.891,21.3031881]
[1770164634775,3.34313306,97.93,97.891,21.3031881]
[1770164637785,9.2028,97.938,97.891,21.3031881]
[1770164638581,9.2019,97.948,97.891,21.3031881]
[1770164639486,9.2019,97.948,97.894,21.56097278]
[1770164639978,3.34313306,97.93,97.879,429.20097278]
[1770164640181,3.34313306,97.93,97.88,21.56097278]
[1770164640375,3.34313306,97.93,97.879,407.64]
[1770164640376,9.39013805,97.935,97.882,21.56097278]
[1770164640581,9.2028,97.938,97.882,21.56097278]
[1770164641083,9.2028,97.938,97.884,21.56097278]
[1770164641286,3.34313306,97.93,97.9,0.06458518]
[1770164641678,3.4108779,97.92,97.884,21.56097278]
[1770164642277,3.34313306,97.92,97.884,21.56097278]
[1770164642984,15.37723385,97.919,97.867,21.56097278]
[1770164643189,143.1599,97.935,97.805,143.349]
[1770164643190,3.34313306,97.88,97.82,3.34313306]
[1770164643386,3.34313306,97.88,97.821,21.56097278]
[1770164643689,3.34313306,97.88,97.826,21.56097278]
[1770164643984,9.2074,97.889,97.826,21.56097278]
[1770164644386,3.34313306,97.89,97.829,21.56097278]
[1770164644980,15.37723385,97.899,97.829,21.56097278]
[1770164645186,0.06550043,97.87,97.829,21.56097278]
[1770164645886,0.06550043,97.87,97.835,21.56097278]
[1770164646390,12.55043306,97.89,97.835,21.56097278]
[1770164646988,12.55043306,97.89,97.837,21.56097278]
[1770164647284,3.34313306,97.92,97.861,21.56097278]
[1770164647586,15.48526774,97.929,97.874,21.56097278]
[1770164648184,3.34313306,97.93,97.874,21.56097278]
[1770164648486,9.2024,97.943,97.885,21.56097278]
[1770164648680,15.56165768,97.945,97.885,21.56097278]
[1770164648884,9.2034,97.932,97.885,21.56097278]
[1770164649284,15.4184016,97.931,97.863,407.7]
[1770164649489,15.4184016,97.931,97.864,21.56097278]
[1770164649789,9.2039,97.926,97.867,21.56097278]
[1770164649992,15.4184016,97.931,97.867,21.56097278]
[1770164650484,15.4184016,97.931,97.877,21.56097278]
[1770164651088,9.2036,97.93,97.879,21.56097278]
[1770164651283,15.4184016,97.931,97.879,21.56097278]
[1770164651688,9.2036,97.93,97.879,21.56097278]
[1770164653094,161.5163,97.965,97.879,21.56097278]
[1770164653095,15.7151549,97.947,97.879,21.56097278]
[1770164653494,9.2022,97.945,97.879,21.56097278]
[1770164654794,9.2022,97.945,97.887,21.56097278]
[1770164656098,15.61041769,97.936,97.887,21.56097278]
[1770164656702,15.84584508,97.934,97.873,407.68]
[1770164656894,15.84584508,97.933,97.874,21.56097278]
[1770164657692,9.2039,97.927,97.874,30.76977278]
[1770164657998,9.2039,97.927,97.875,21.56097278]
[1770164658796,9.2039,97.927,97.877,21.56097278]
[1770164660198,15.84584508,97.933,97.879,21.56097278]
[1770164660497,9.39013805,97.947,97.879,21.56097278]
[1770164660689,9.202,97.947,97.898,9.2065]
[1770164661096,9.39013805,97.956,97.899,21.86204484]
[1770164661400,15.69546359,97.963,97.911,9.2052]
[1770164662195,25.08560164,97.963,97.911,9.2052]
[1770164662391,25.08560164,97.963,97.912,21.86204484]
[1770164662595,9.39013805,97.97,97.914,21.86204484]
[1770164662792,15.7136179,97.969,97.914,21.86204484]
[1770164662993,8.35277187,97.98,97.914,21.86204484]
[1770164662994,15.7136179,97.967,97.914,21.86204484]
[1770164663800,9.2008,97.96,97.914,21.86204484]
[1770164664000,9.2008,97.96,97.93,0.06457193]
[1770164664197,15.7136179,97.967,97.93,0.06457193]
[1770164664496,9.1995,97.973,97.93,0.06457193]
[1770164664701,9.39013805,97.982,97.93,21.92661677]
[1770164664901,15.87481052,97.981,97.93,21.92661677]
[1770164665102,15.87481052,97.977,97.914,21.86204484]
[1770164665502,9.39013805,97.976,97.914,21.86204484]
[1770164665707,25.27291694,97.973,97.914,21.86204484]
[1770164666011,25.27291694,97.973,97.93,0.06574979]
[1770164666208,15.88277889,97.973,97.93,0.06574979]
[1770164667804,9.1996,97.972,97.93,0.06574979]
[1770164669809,12.18569081,97.993,97.93,0.06574979]
[1770164669810,25.55530692,98.011,97.933,21.86204484]
[1770164670007,16.16516887,98.011,97.933,21.86204484]
[1770164670407,16.16516887,98.011,97.93,0.06574979]
[1770164670408,3.33669956,98.0,97.941,21.86204484]
[1770164670810,3.33669956,97.99,97.947,21.86204484]
[1770164671106,3.33669956,97.96,97.912,21.86204484]
[1770164672911,3.33669956,97.98,97.912,21.86204484]
[1770164673214,3.33669956,97.98,97.921,21.86204484]
[1770164673714,3.33669956,97.97,97.921,21.86204484]
[1770164674312,3.33669956,97.97,97.926,9.2038]
[1770164675214,3.33669956,97.97,97.921,21.86204484]
[1770164675410,3.33669956,97.95,97.92,0.06478117]
[1770164676113,3.33669956,97.94,97.92,0.06478117]
[1770164676316,3.33669956,97.95,97.92,0.06478117]
[1770164676716,9.1999,97.969,97.92,21.92682601]
[1770164677016,19.05563009,97.97,97.92,21.92682601]
[1770164677214,19.05563009,97.97,97.92,21.86204484]
[1770164677413,3.33669956,97.97,97.92,21.86204484]
[1770164677609,3.33669956,97.98,97.92,21.86204484]
[1770164678012,3.33669956,97.98,97.904,544.9037]
[1770164678013,3.33669956,97.99,97.947,9.2019]
[1770164680514,15.69778813,98.001,97.951,9.2015]
[1770164680818,16.81438183,98.017,97.952,21.86204484]
[1770164681315,143.0108,98.037,97.954,21.86204484]
[1770164681316,16.81438183,98.032,97.954,21.86204484]
[1770164681616,9.1947,98.025,97.961,21.86204484]
[1770164681816,16.81438183,98.032,97.963,21.86204484]
[1770164682220,16.82098317,98.053,97.983,21.86204484]
[1770164682816,17.02105959,98.039,97.983,21.86204484]
[1770164683116,17.02105959,98.039,98.0,0.06496676]
[1770164684421,9.1936,98.036,98.0,0.06496676]
[1770164684622,9.1936,98.036,97.983,21.86204484]
[1770164685123,17.02105959,98.039,97.983,21.86204484]
[1770164686326,17.02105959,98.039,97.985,21.86204484]
[1770164687922,9.1927,98.046,97.987,21.86204484]
[1770164688123,142.9205,98.099,97.968,407.4]
[1770164688124,16.57033599,98.078,97.989,21.86204484]
[1770164688422,16.57033599,98.078,97.98,8.34436925]
[1770164688423,16.57033599,98.078,97.992,21.86204484]
[1770164688618,142.9514,98.078,98.013,21.86204484]
[1770164688823,16.36136983,98.07,97.983,21.86204484]
[1770164689225,16.36136983,98.066,98.004,21.86204484]
[1770164689925,159.3486575,98.057,97.989,21.86204484]
[1770164690125,16.3672575,98.054,97.989,21.86204484]
[1770164690624,9.1934,98.038,97.989,21.86204484]
[1770164690829,16.80633067,98.037,97.989,21.86204484]
[1770164691625,16.81196467,98.053,97.989,21.86204484]
[1770164692433,142.9513,98.078,97.972,143.1043]
[1770164692434,15.30931714,98.051,97.991,20.65219766]
[1770164693129,9.1923,98.05,97.991,20.65219766]
[1770164693332,15.30931714,98.049,97.991,20.65219766]
[1770164693530,15.31461424,98.039,97.973,20.65219766]
[1770164693934,15.31461424,98.039,97.978,20.65219766]
[1770164694435,9.1934,98.038,97.978,20.65219766]
[1770164694636,15.31461424,98.039,97.978,20.65219766]
[1770164695739,14.99923843,98.059,97.995,20.59288138]
[1770164696742,14.83129901,98.077,98.021,20.59288138]
[1770164697538,14.83678988,98.069,98.001,20.59288138]
[1770164698144,14.83678988,98.065,98.002,9.1967]
[1770164698536,14.83678988,98.065,98.02,0.06467654]
[1770164698835,14.94162698,98.056,97.983,20.59288138]
[1770164699032,0.06625736,98.05,97.983,20.59288138]
[1770164699239,15.00788434,98.05,97.983,20.59288138]
[1770164699742,14.94162698,98.05,97.987,20.59288138]
[1770164700043,14.94670631,98.069,97.989,20.59288138]
[1770164700433,16.32367512,98.056,97.989,20.59288138]
[1770164700633,0.066322,98.04,97.989,20.59288138]
[1770164700940,16.38999712,98.04,97.989,20.59288138]
[1770164701139,16.32367512,98.04,97.989,20.59288138]
[1770164701540,16.32367512,98.04,97.97,20.59288138]
[1770164701742,9.1972,97.997,97.937,20.59288138]
[1770164701937,9.1972,97.997,97.91,8.34436925]
[1770164701938,0.06608672,98.01,97.94,20.59288138]
[1770164702243,0.06608672,98.01,97.946,20.59288138]
[1770164702438,16.3292712,98.025,97.946,20.59288138]
[1770164702640,16.3292712,98.025,97.97,20.59288138]
[1770164702839,9.194,98.032,97.97,20.59288138]
[1770164703040,16.71797503,98.045,97.97,20.59288138]
[1770164703242,16.71797503,98.045,97.961,143.1209]
[1770164703243,9.1939,98.033,97.974,20.59288138]
[1770164703441,16.71797503,98.045,97.979,20.59288138]
[1770164704737,16.71797503,98.045,97.996,9.1973]
[1770164705048,0.0658179,98.03,97.996,9.1973]
[1770164705339,0.0658179,98.03,97.999,9.197]
[1770164705539,0.0658179,98.03,97.997,20.59288138]
[1770164705739,9.1917,98.056,97.997,20.59288138]
[1770164705936,9.1922,98.051,97.997,20.59288138]
[1770164706141,25.46404765,98.051,97.997,20.59288138]
[1770164707042,16.27184765,98.051,97.997,20.59288138]
[1770164707242,9.1913,98.061,97.999,20.59288138]
[1770164707540,9.1913,98.061,97.971,143.1061]
[1770164707541,9.4108348,98.104,98.029,20.59288138]
[1770164707843,16.27864484,98.109,98.044,20.59288138]
[1770164708148,9.1872,98.104,98.044,20.59288138]
[1770164708350,25.46584484,98.104,98.044,20.59288138]
[1770164708548,2.77948636,98.118,98.063,20.59288138]
[1770164708742,2.77948636,98.118,98.069,20.59288138]
[1770164708942,2.77948636,98.118,98.077,20.59288138]
[1770164709140,8.636e-05,98.118,98.077,20.59288138]
[1770164710645,8.636e-05,98.118,98.09,0.06424754]
[1770164711650,16.05789506,98.156,98.091,20.59288138]
[1770164711851,15.97388376,98.177,98.095,20.59288138]
[1770164712048,15.97388376,98.164,98.095,20.59288138]
[1770164712349,142.8246,98.165,98.095,20.59288138]
[1770164712350,9.1836,98.143,98.095,20.59288138]
[1770164712949,9.1836,98.143,98.07,20.59288138]
[1770164713146,15.92756036,98.139,98.07,20.59288138]
[1770164713351,15.92756036,98.137,98.07,20.59288138]
[1770164714445,15.93184459,98.156,98.072,20.59288138]
[1770164714845,15.93184459,98.156,98.09,0.06506647]
[1770164715148,8.34436925,98.17,98.091,20.59288138]
[1770164715540,16.1886449,98.169,98.091,20.59288138]
[1770164715747,16.1886449,98.165,98.12,0.06465461]
[1770164716251,16.1886449,98.165,98.092,20.59288138]
[1770164716649,15.8692598,98.163,98.092,20.59288138]
[1770164716948,15.8692598,98.159,98.092,20.59288138]
[1770164718647,15.8692598,98.159,98.1,0.06439196]
[1770164718842,25.0513598,98.159,98.101,20.59288138]
[1770164719044,16.14502692,98.179,98.101,20.59288138]
[1770164719247,9.1793,98.189,98.127,20.59288138]
[1770164719953,16.14502692,98.198,98.129,20.59288138]
[1770164720343,16.14822047,98.221,98.129,20.59288138]
[1770164720545,15.90612296,98.219,98.129,20.59288138]
[1770164720956,9.177,98.213,98.14,22.22743887]
[1770164721152,15.90612296,98.219,98.142,22.22743887]
[1770164721350,248.9,98.244,98.132,518.4907]
[1770164721351,15.87445269,98.239,98.174,22.22743887]
[1770164721957,142.6615,98.277,98.174,22.22743887]
[1770164721958,15.87782871,98.237,98.174,22.22743887]
[1770164722652,15.87782871,98.237,98.19,0.06415227]
[1770164723452,15.95195049,98.23,98.16,9.1819]
[1770164723653,15.95195049,98.23,98.161,22.22743887]
[1770164724247,9.1759,98.226,98.162,9.1818]
[1770164724654,16.14547864,98.219,98.141,22.22743887]
[1770164724951,16.14547864,98.216,98.141,22.22743887]
[1770164726657,9.1778,98.205,98.141,22.22743887]
[1770164727458,16.14547864,98.216,98.144,22.22743887]
[1770164727758,16.14547864,98.216,98.146,22.22743887]
[1770164728258,16.30236015,98.239,98.16,22.22743887]
[1770164728558,25.47926015,98.215,98.141,22.22743887]
[1770164728760,15.46157479,98.209,98.141,22.22743887]
[1770164729662,9.1778,98.205,98.141,22.22743887]
[1770164729863,0.06485111,98.17,98.141,22.22743887]
[1770164730255,9.1778,98.205,98.141,22.22743887]
[1770164730757,15.46082393,98.195,98.141,22.22743887]
[1770164731261,15.46082393,98.195,98.125,406.68]
[1770164731460,15.46082393,98.195,98.125,428.90743887]
[1770164731657,15.46082393,98.195,98.125,406.68]
[1770164732055,17.4888609,98.18,98.113,22.22743887]
[1770164732260,15.39941488,98.179,98.113,22.22743887]
[1770164732662,15.39941488,98.179,98.092,449.2094]
[1770164732663,15.39941488,98.179,98.115,22.22743887]
[1770164733063,0.06495623,98.15,98.115,22.22743887]
[1770164733765,8.3087609,98.19,98.117,22.22743887]
[1770164733965,8.3087609,98.19,98.121,22.22743887]
[1770164734957,9.1793,98.189,98.125,22.22743887]
[1770164735466,15.74598924,98.198,98.125,22.22743887]
[1770164735666,9.1786,98.196,98.125,22.22743887]
[1770164736365,9.1786,98.196,98.138,9.184]
[1770164737167,8.3087609,98.17,98.105,22.22743887]
[1770164737564,15.86750716,98.169,98.105,22.22743887]
[1770164738264,15.86750716,98.166,98.105,22.22743887]
[1770164738569,16.26467993,98.149,98.087,22.22743887]
[1770164740768,9.184,98.138,98.087,22.22743887]
[1770164740968,16.38859615,98.167,98.096,22.22743887]
[1770164741360,9.1814,98.166,98.096,22.22743887]
[1770164743572,9.1814,98.166,98.11,9.1865]
[1770164744267,9.18,98.181,98.12,22.22743887]
[1770164744773,16.4628736,98.189,98.12,22.22743887]
[1770164744974,16.4628736,98.189,98.123,22.22743887]
[1770164745167,16.62148974,98.208,98.128,22.22743887]
[1770164745467,16.62148974,98.208,98.13,22.22743887]
[1770164746269,0.06436061,98.18,98.136,22.22743887]
[1770164747067,0.06436061,98.18,98.117,22.22743887]
[1770164747672,16.67230455,98.191,98.117,22.22743887]
[1770164748772,9.1802,98.18,98.12,9.1857]
[1770164749576,0.06455139,98.16,98.12,9.1857]
[1770164749975,0.06455139,98.16,98.117,22.22743887]
[1770164750372,9.41476809,98.203,98.123,22.22743887]
[1770164750679,17.01616642,98.203,98.123,22.22743887]
[1770164751666,9.1786,98.197,98.137,9.184]
[1770164752572,9.1786,98.197,98.16,0.06457494]
[1770164752878,9.41476809,98.201,98.16,0.06457494]
[1770164753176,9.41476809,98.198,98.16,0.06457494]
[1770164753878,9.41476809,98.198,98.123,22.22743887]
[1770164754078,9.41476809,98.197,98.123,22.22743887]
[1770164754779,9.1788,98.194,98.134,9.1843]
[1770164754974,9.1788,98.194,98.135,21.17480018]
[1770164755176,9.41476809,98.193,98.135,21.17480018]
[1770164755474,9.41476809,98.197,98.145,9.1833]
[1770164755674,26.38128237,98.201,98.146,21.90018202]
[1770164756176,26.36760261,98.184,98.125,9.1852]
[1770164756382,16.95283452,98.184,98.125,9.1852]
[1770164756582,9.41476809,98.182,98.125,9.1852]
[1770164756771,16.90106445,98.18,98.117,21.90018202]
[1770164756975,16.90106445,98.171,98.117,21.90018202]
[1770164757177,26.31583254,98.17,98.092,21.90018202]
[1770164757476,9.182,98.16,98.098,21.90018202]
[1770164757976,9.1829,98.151,98.098,21.90018202]
[1770164760181,9.41476809,98.158,98.098,21.90018202]
[1770164760485,9.41476809,98.17,98.11,21.90018202]
[1770164760686,9.41476809,98.169,98.11,21.90018202]
[1770164760880,9.41476809,98.167,98.11,21.90018202]
[1770164761384,9.41476809,98.168,98.11,21.90018202]
[1770164761787,9.41476809,98.167,98.11,21.90018202]
[1770164762280,9.41476809,98.168,98.11,21.90018202]
[1770164762782,9.1815,98.165,98.11,21.90018202]
[1770164763084,9.41476809,98.163,98.11,21.90018202]
[1770164763681,9.1815,98.165,98.11,21.90018202]
[1770164764788,9.1824,98.155,98.11,21.90018202]
[1770164766077,17.35271422,98.164,98.11,21.90018202]
[1770164766286,9.41476809,98.179,98.11,21.90018202]
[1770164766479,17.35543558,98.18,98.11,21.90018202]
[1770164766681,9.41476809,98.183,98.132,21.90018202]
[1770164766890,8.3087609,98.19,98.132,21.90018202]
[1770164767084,9.41476809,98.197,98.132,21.90018202]
[1770164767287,9.50118263,98.215,98.156,21.90018202]
[1770164767486,26.74987025,98.24,98.156,21.90018202]
[1770164767689,18.4436916,98.233,98.156,21.90018202]
[1770164767992,18.4436916,98.233,98.133,391.46]
[1770164767993,18.4436916,98.215,98.14,21.90018202]
[1770164768293,18.4436916,98.215,98.143,21.90018202]
[1770164768785,0.06444764,98.19,98.143,21.90018202]
[1770164769390,18.4436916,98.215,98.144,21.90018202]
[1770164769786,18.4436916,98.215,98.159,9.182]
[1770164769991,18.4436916,98.215,98.144,21.90018202]
[1770164770491,142.7188,98.238,98.144,21.90018202]
[1770164770492,17.26676319,98.198,98.144,21.90018202]
[1770164770692,17.26676319,98.194,98.121,21.90018202]
[1770164770893,17.26676319,98.179,98.121,21.90018202]
[1770164771188,17.26676319,98.179,98.11,316.06]
[1770164771887,17.26906999,98.174,98.104,21.90018202]